fUST/lending_fUST_20250603
["ID","MTS","AMOUNT","RATE_DAILY","PERIOD"]
[363921069,1748926247744,-500.0,0.000201,2]
[363921071,1748926247753,-501.66252973,0.000201,2]
[363921073,1748926247763,-501.43291838,0.000201,2]
[363921075,1748926247773,-503.51093668,0.000201,2]
[363921077,1748926247783,-502.08484922,0.000201,2]
[363921079,1748926247792,-500.0,0.000201,2]
[363921081,1748926247801,-500.0,0.000201,2]
[363921083,1748926247810,-500.0,0.000201,2]
[363921085,1748926247820,-500.0,0.000201,2]
[363921087,1748926247829,-500.0,0.000201,2]
[363921089,1748926247839,-439.75392912,0.000201,2]
[363921091,1748926247848,-500.0,0.000201,2]
[363921093,1748926247858,-500.0,0.000201,2]
[363921095,1748926247867,-151.530294,0.000201,2]
[363921097,1748926247878,-215.460416,0.00020187,2]
[363921099,1748926247887,-1000.0,0.00020202,2]
[363921101,1748926247896,-600.0,0.00020229,2]
[363921103,1748926247906,-500.0,0.00020229,2]
[363921105,1748926247915,-500.90730214,0.00020229,2]
[363921107,1748926247924,-500.0,0.00020229,2]
[363921109,1748926247934,-501.73049745,0.00020229,2]
[363921111,1748926247943,-500.0,0.00020229,2]
[363921113,1748926247952,-502.76889791,0.00020229,2]
[363921115,1748926247961,-500.0,0.00020229,2]
[363921117,1748926247971,-500.0,0.00020229,2]
[363921119,1748926247980,-503.13665459,0.00020229,2]
[363921121,1748926247989,-500.0,0.00020229,2]
[363921123,1748926247998,-501.34650844,0.00020229,2]
[363921125,1748926248007,-500.0,0.00020229,2]
[363921127,1748926248017,-501.57361389,0.00020229,2]
[363921129,1748926248026,-500.0,0.00020229,2]
[363921131,1748926248035,-500.0,0.00020229,2]
[363921133,1748926248043,-171.45928631,0.00020229,2]
[363921135,1748926248052,-440.0,0.00020271,2]
[363921137,1748926248061,-440.0,0.00020271,2]
[363921139,1748926248071,-1177.26,0.00020271,2]
[363921141,1748926248080,-1462.82,0.00020271,2]
[363921143,1748926248090,-449.26,0.00020271,2]
[363921144,1748926248099,-1528.45,0.00020272,2]
[363921146,1748926248108,-1366.97,0.00020272,2]
[363921149,1748926248118,-440.0,0.00020272,2]
[363921150,1748926248128,-649.77,0.00020272,2]
[363921153,1748926248138,-575.0,0.00020272,2]
[363921154,1748926248147,-440.0,0.00020272,2]
[363921156,1748926248156,-532.7,0.00020272,2]
[363921158,1748926248165,-440.0,0.00020272,2]
[363921160,1748926248175,-781.56,0.00020272,2]
[363921162,1748926248183,-440.0,0.00020272,2]
[363921164,1748926248193,-1919.59,0.00020272,2]
[363921166,1748926248203,-440.0,0.00020273,2]
[363921168,1748926248212,-951.52,0.00020273,2]
[363921170,1748926248221,-717.9,0.00020273,2]
[363921172,1748926248231,-1510.98,0.00020273,2]
[363921174,1748926248240,-588.45,0.00020273,2]
[363921176,1748926248249,-763.39,0.00020273,2]
[363921178,1748926248259,-166.0,0.00020274,2]
[363921180,1748926248268,-1788.58471762,0.00020279,3]
[363921182,1748926248277,-500.0,0.00020385,2]
[363921184,1748926248286,-503.71372657,0.00020385,2]
[363921185,1748926248296,-539.80823797,0.0002042,2]
[363921188,1748926248306,-503.2118004,0.00020426,2]
[363921189,1748926248314,-1788.58471762,0.00020521,3]
[363921191,1748926248323,-500.9688298,0.00020533,2]
[363921193,1748926248333,-501.13233686,0.00020538,2]
[363921195,1748926248342,-152.56836936,0.00020538,2]
[363921197,1748926248352,-501.77325868,0.00020538,2]
[363921200,1748926248363,-500.0,0.00020538,2]
[363921201,1748926248373,-440.0,0.00020545,2]
[363921203,1748926248382,-440.0,0.00020545,2]
[363921205,1748926248391,-1177.26,0.00020545,2]
[363921207,1748926248403,-1462.82,0.00020545,2]
[363921209,1748926248413,-1528.45,0.00020546,2]
[363921211,1748926248423,-1366.97,0.00020546,2]
[363921213,1748926248432,-1366.97,0.00020546,2]
[363921215,1748926248441,-1366.97,0.00020546,2]
[363921217,1748926248452,-1366.97,0.00020546,2]
[363921219,1748926248461,-1367.15106245,0.00020546,2]
[363921220,1748926248470,-440.0,0.00020546,2]
[363921222,1748926248480,-649.77,0.00020546,2]
[363921224,1748926248491,-575.0,0.00020546,2]
[363921226,1748926248502,-440.0,0.00020546,2]
[363921228,1748926248512,-532.7,0.00020546,2]
[363921230,1748926248522,-251.42,0.00020546,2]
[363921232,1748926248531,-781.56,0.00020546,2]
[363921234,1748926248540,-531.03,0.00020546,2]
[363921236,1748926248550,-1919.59,0.00020546,2]
[363921238,1748926248559,-440.0,0.00020547,2]
[363921240,1748926248569,-951.52,0.00020547,2]
[363921242,1748926248578,-717.9,0.00020547,2]
[363921244,1748926248587,-1510.98,0.00020547,2]
[363921246,1748926248596,-588.45,0.00020547,2]
[363921248,1748926248606,-763.39,0.00020547,2]
[363921250,1748926248615,-557.55701656,0.00020619,2]
[363921252,1748926248624,-502.98796849,0.00020629,2]
[363921254,1748926248635,-500.0,0.00020629,2]
[363921255,1748926248644,-532.46122988,0.00020629,2]
[363921257,1748926248655,-317.088591,0.0002063,2]
[363921259,1748926248664,-306.745737,0.0002063,2]
[363921261,1748926248674,-312.6652594,0.0002063,2]
[363921263,1748926248683,-2291.34522208,0.00020646,2]
[363921265,1748926248693,-500.0,0.00020647,2]
[363921267,1748926248703,-505.78867747,0.00020648,2]
[363921269,1748926248713,-505.73318035,0.00020648,2]
[363921270,1748926248723,-502.7778796,0.00020648,2]
[363921272,1748926248732,-519.70268838,0.00020648,2]
[363921274,1748926248743,-1004.42654874,0.00020648,2]
[363921275,1748926248752,-1000.0,0.00020648,2]
[363921276,1748926248762,-1000.0,0.00020648,2]
[363921277,1748926248771,-1000.0,0.00020648,2]
[363921278,1748926248780,-1500.0,0.0002075,2]
[363921279,1748926248789,-1788.58471762,0.00020762,3]
[363921280,1748926248798,-1200.0,0.00020777,2]
[363921281,1748926248808,-504.67081318,0.00020777,2]
[363921282,1748926248818,-1002.64960961,0.00020777,2]
[363921283,1748926248828,-328.55184798,0.00020777,2]
[363921284,1748926248838,-1000.0,0.00020777,2]
[363921285,1748926248847,-1000.0,0.00020777,2]
[363921286,1748926248857,-502.75822396,0.00020777,2]
[363921287,1748926248868,-501.69412432,0.00020777,2]
[363921288,1748926248878,-1000.0,0.00020777,2]
[363921289,1748926248888,-440.0,0.00020819,2]
[363921290,1748926248898,-440.0,0.00020819,2]
[363921291,1748926248907,-1177.26,0.00020819,2]
[363921292,1748926248917,-1462.82,0.00020819,2]
[363921293,1748926248927,-1528.45,0.0002082,2]
[363921294,1748926248937,-440.0,0.0002082,2]
[363921295,1748926248947,-649.77,0.0002082,2]
[363921296,1748926248957,-575.0,0.0002082,2]
[363921297,1748926248967,-440.0,0.0002082,2]
[363921298,1748926248977,-532.7,0.0002082,2]
[363921299,1748926248987,-781.56,0.0002082,2]
[363921300,1748926248997,-1919.59,0.0002082,2]
[363921301,1748926249007,-440.0,0.00020821,2]
[363921302,1748926249017,-951.52,0.00020821,2]
[363921303,1748926249027,-717.9,0.00020821,2]
[363921304,1748926249038,-1510.98,0.00020821,2]
[363921305,1748926249049,-588.45,0.00020821,2]
[363921306,1748926249061,-763.39,0.00020821,2]
[363921307,1748926249071,-882.37572583,0.00020915,2]
[363921309,1748926249081,-308.1561612,0.00020933,2]
[363921310,1748926249091,-207.4,0.00020974,2]
[363921311,1748926249101,-152.37664978,0.00020974,2]
[363921312,1748926249110,-151.0,0.00020974,2]
[363921313,1748926249120,-500.0,0.00020974,2]
[363921314,1748926249131,-500.0,0.00020974,2]
[363921315,1748926249140,-500.0,0.00020974,2]
[363921316,1748926249150,-500.0,0.00020974,2]
[363921318,1748926249160,-500.0,0.00020974,2]
[363921320,1748926249170,-500.0,0.00020974,2]
[363921321,1748926249180,-500.0,0.00020974,2]
[363921323,1748926249190,-5000.0,0.00020974,2]
[363921325,1748926249200,-500.0,0.00020974,2]
[363921327,1748926249211,-500.0,0.00020974,2]
[363921329,1748926249221,-3898.2834867,0.00020974,2]
[363921331,1748926249231,-500.0,0.00020974,2]
[363921333,1748926249241,-500.0,0.00020974,2]
[363921335,1748926249251,-500.0,0.00020974,2]
[363921337,1748926249261,-500.0,0.00020974,2]
[363921339,1748926249271,-500.0,0.00020974,2]
[363921341,1748926249281,-500.0,0.00020974,2]
[363921343,1748926249291,-189.99207645,0.00021,7]
[363921345,1748926249303,-1788.58471762,0.00021003,4]
[363921347,1748926249313,-700.0,0.0002106,2]
[363921349,1748926249323,-1006.52502684,0.00021086,2]
[363921351,1748926249333,-440.0,0.00021093,2]
[363921353,1748926249342,-440.0,0.00021093,2]
[363921355,1748926249352,-1177.26,0.00021093,2]
[363921357,1748926249365,-1462.82,0.00021093,2]
[363921359,1748926249374,-1528.45,0.00021094,2]
[363921361,1748926249384,-180.04,0.00021094,2]
[363921363,1748926249395,-649.77,0.00021094,2]
[363921377,1748926249520,-575.0,0.00021094,2]
[363921379,1748926249530,-440.0,0.00021094,2]
[363921381,1748926249540,-532.7,0.00021094,2]
[363921383,1748926249551,-781.56,0.00021094,2]
[363921385,1748926249562,-151.0,0.00021094,2]
[363921387,1748926249571,-1919.59,0.00021094,2]
[363921389,1748926249581,-340.0,0.00021095,2]
[363921391,1748926249591,-951.52,0.00021095,2]
[363921393,1748926249601,-717.9,0.00021095,2]
[363921395,1748926249611,-1510.98,0.00021095,2]
[363921397,1748926249620,-154.564736,0.00021095,2]
[363921399,1748926249629,-588.45,0.00021095,2]
[363921401,1748926249640,-763.39,0.00021095,2]
[363921403,1748926249650,-1000.0,0.00021162,5]
[363921405,1748926249662,-503.48503408,0.00021177,2]
[363921407,1748926249671,-153.0,0.00021178,2]
[363921409,1748926249681,-985.83,0.00021181,2]
[363921411,1748926249691,-503.10870994,0.00021195,2]
[363921413,1748926249702,-1100.0,0.00021196,2]
[363921416,1748926249712,-511.38696869,0.00021196,2]
[363921418,1748926249722,-506.27683546,0.00021196,2]
[363921419,1748926249732,-1788.58471762,0.00021245,4]
[363921421,1748926249741,-985.83,0.00021281,2]
[363921423,1748926249750,-2475.39,0.00021288,2]
[363921425,1748926249760,-1778.07644723,0.00021298,2]
[363921427,1748926249769,-1221.3789246,0.00021324,2]
[363921429,1748926249778,-505.69346178,0.00021324,2]
[363921431,1748926249788,-1500.0,0.00021324,2]
[363921433,1748926249798,-503.27683097,0.00021324,2]
[363921435,1748926249807,-440.0,0.00021367,2]
[363921437,1748926249817,-440.0,0.00021367,2]
[363921439,1748926249826,-1177.26,0.00021367,2]
[363921440,1748926249836,-1462.82,0.00021367,2]
[363921442,1748926249846,-1528.45,0.00021368,2]
[363921444,1748926249856,-649.77,0.00021368,2]
[363921446,1748926249865,-575.0,0.00021368,2]
[363921448,1748926249875,-440.0,0.00021368,2]
[363921450,1748926249884,-532.7,0.00021368,2]
[363921452,1748926249894,-781.56,0.00021368,2]
[363921454,1748926249904,-1919.59,0.00021368,2]
[363921456,1748926249913,-951.52,0.00021369,2]
[363921458,1748926249923,-717.9,0.00021369,2]
[363921460,1748926249932,-1510.98,0.00021369,2]
[363921462,1748926249942,-588.45,0.00021369,2]
[363921464,1748926249952,-763.39,0.00021369,2]
[363921466,1748926249962,-985.83,0.00021381,2]
[363921468,1748926249971,-159.93905229,0.00021452,2]
[363921471,1748926249981,-153.0,0.00021452,2]
[363921472,1748926249990,-316.8507682,0.00021452,2]
[363921475,1748926250000,-353.1243127,0.00021452,2]
[363921477,1748926250009,-572.6068135,0.00021452,2]
[363921478,1748926250019,-572.6068135,0.00021452,2]
[363921480,1748926250028,-572.6068135,0.00021452,2]
[363921482,1748926250038,-571.7505079,0.00021452,2]
[363921484,1748926250047,-618.09477708,0.00021477,2]
[363921487,1748926250058,-333.9734973,0.00021479,2]
[363921489,1748926250069,-318.1328912,0.00021479,2]
[363921491,1748926250078,-985.83,0.00021481,2]
[363921493,1748926250087,-318.37673718,0.00021481,2]
[363921495,1748926250097,-1788.58471762,0.00021486,5]
[363921497,1748926250106,-349.35,0.000215,7]
[363921499,1748926250116,-177.53905904,0.00021522,2]
[363921501,1748926250125,-5000.0,0.00021522,2]
[363921503,1748926250134,-985.83,0.00021581,2]
[363921505,1748926250144,-962.0,0.00021625,2]
[363921506,1748926250154,-2227.0,0.00021625,2]
[363921508,1748926250163,-709.0,0.00021625,2]
[363921510,1748926250172,-405.0,0.00021625,2]
[363921512,1748926250181,-250.8631306,0.00021641,2]
[363921514,1748926250190,-440.0,0.00021641,2]
[363921516,1748926250200,-1177.26,0.00021641,2]
[363921518,1748926250209,-1462.82,0.00021641,2]
[363921521,1748926250219,-154.574,0.00021642,2]
[363921522,1748926250228,-1528.45,0.00021642,2]
[363921524,1748926250238,-649.77,0.00021642,2]
[363921527,1748926250248,-575.0,0.00021642,2]
[363921529,1748926250258,-440.0,0.00021642,2]
[363921531,1748926250267,-532.7,0.00021642,2]
[363921533,1748926250276,-781.56,0.00021642,2]
[363921534,1748926250286,-1919.59,0.00021642,2]
[363921535,1748926250295,-128488.94082945,0.00021642,2]
[363921536,1748926250311,-332.51116427,0.00021642,2]
[363921537,1748926250463,-440.0,0.0001671,2]
[363921538,1748926250473,-440.0,0.00016984,2]
[363921539,1748926250482,-440.0,0.00017258,2]
[363921540,1748926250492,-440.0,0.00017532,2]
[363921541,1748926250502,-150.497,0.00021625,2]
[363921543,1748926250511,-4363.24470196,0.00021642,2]
[363921545,1748926250530,-440.0,0.00017806,2]
[363921546,1748926250539,-16654.18296425,0.00021642,2]
[363921547,1748926250551,-14892.45370041,0.00021642,2]
[363921548,1748926250579,654.0,0.00015,14]
[363922142,1748926257802,1000.0,0.000155,14]
[363922417,1748926377984,300.0,0.0001552,2]
[363922418,1748926407614,255.97,0.0001552,2]
[363922419,1748926645216,1539.31,0.0001552,2]
[363922420,1748926646520,193.914374,0.00013699,2]
[363922425,1748926884728,10296.5100754,0.00015458,2]
[363922426,1748927020918,3671.53224165,0.0001552,2]
[363922427,1748927022742,4447.57251424,0.0001545,2]
[363922428,1748927034341,2124.0,0.0001552,2]
[363922429,1748927067227,186.0,0.000155,2]
[363922430,1748927068100,186.0,0.000155,2]
[363922431,1748927076309,192.610017,0.00015479,2]
[363922432,1748927080118,186.0,0.000155,2]
[363922460,1748927432037,-174.90763307,0.00016427,2]
[363922461,1748927432047,-300.0,0.00016436,2]
[363922462,1748927432057,-151.0,0.00016436,2]
[363922463,1748927432067,-259.98798496,0.00016437,2]
[363922464,1748927432076,-500.0,0.00016437,2]
[363922465,1748927432086,-500.0,0.00016437,2]
[363922466,1748927432095,-198.66344541,0.00016437,2]
[363922467,1748927432105,-351.59700963,0.00016437,2]
[363922468,1748927432115,-178.42055099,0.00016437,2]
[363922469,1748927432124,-202.38362582,0.00016437,2]
[363922470,1748927432134,-500.0,0.00016437,2]
[363922472,1748927432143,-500.0,0.00016437,2]
[363922473,1748927432153,-500.0,0.00016437,2]
[363922474,1748927432163,-500.0,0.00016437,2]
[363922475,1748927432172,-500.0,0.00016437,2]
[363922476,1748927432182,-500.0,0.00016437,2]
[363922477,1748927432191,-500.0,0.00016437,2]
[363922478,1748927432201,-339.55797037,0.00016437,2]
[363922479,1748927432210,-162.70576416,0.00016437,2]
[363922480,1748927432220,-500.0,0.00016437,2]
[363922481,1748927432230,-500.0,0.00016437,2]
[363922482,1748927432240,-500.0,0.00016437,2]
[363922483,1748927432249,-500.0,0.00016437,2]
[363922484,1748927432259,-193.89149529,0.00016437,2]
[363922485,1748927432269,-570.38458282,0.00016437,2]
[363922486,1748927432278,-500.0,0.00016437,2]
[363922487,1748927432288,-500.0,0.00016437,2]
[363922488,1748927432302,-500.0,0.00016437,2]
[363922489,1748927432316,-500.0,0.00016437,2]
[363922490,1748927432326,-500.0,0.00016437,2]
[363922491,1748927432337,-500.0,0.00016437,2]
[363922492,1748927432348,-500.0,0.00016437,2]
[363922493,1748927432359,-500.0,0.00016437,2]
[363922494,1748927432368,-500.0,0.00016437,2]
[363922495,1748927432378,-500.0,0.00016437,2]
[363922496,1748927432388,-500.0,0.00016437,2]
[363922497,1748927432398,-500.0,0.00016437,2]
[363922498,1748927432410,-500.0,0.00016437,2]
[363922499,1748927432422,-500.0,0.00016437,2]
[363922500,1748927432431,-500.0,0.00016437,2]
[363922501,1748927432444,-199.02096675,0.00016437,2]
[363922619,1748927443083,-300.97903325,0.00016437,2]
[363922620,1748927443094,-500.0,0.00016437,2]
[363922621,1748927443104,-500.0,0.00016437,2]
[363922622,1748927443114,-500.0,0.00016437,2]
[363922623,1748927443123,-500.0,0.00016437,2]
[363922624,1748927443133,-500.0,0.00016437,2]
[363922625,1748927443143,-300.0,0.00016437,2]
[363922626,1748927443152,-500.0,0.00016437,2]
[363922627,1748927443162,-500.0,0.00016437,2]
[363922628,1748927443171,-500.0,0.00016437,2]
[363922629,1748927443181,-500.0,0.00016437,2]
[363922630,1748927443191,-300.0,0.00016437,2]
[363922631,1748927443201,-600.41955997,0.00016437,2]
[363922632,1748927443211,-500.0,0.00016437,2]
[363922633,1748927443221,-500.0,0.00016437,2]
[363922634,1748927443231,-500.0,0.00016437,2]
[363922635,1748927443240,-500.0,0.00016437,2]
[363922636,1748927443250,-500.0,0.00016437,2]
[363922637,1748927443260,-500.0,0.00016437,2]
[363922638,1748927443269,-352.61048826,0.00016437,2]
[363922645,1748927445986,-300.0,0.00016436,2]
[363922646,1748927445997,-147.38951174,0.00016437,2]
[363922647,1748927446007,-500.0,0.00016437,2]
[363922648,1748927446018,-500.0,0.00016437,2]
[363922649,1748927446029,-500.0,0.00016437,2]
[363922650,1748927446038,-500.0,0.00016437,2]
[363922651,1748927446048,-250.0,0.00016437,2]
[363922652,1748927446058,-500.0,0.00016437,2]
[363922653,1748927446068,-430.0,0.00016438,2]
[363922654,1748927446077,-380.0,0.00016438,2]
[363922655,1748927446087,-430.0,0.00016438,2]
[363922656,1748927446096,-440.0,0.00016438,2]
[363922657,1748927446106,-430.0,0.00016438,2]
[363922658,1748927446115,-440.0,0.00016438,2]
[363922659,1748927446125,-430.0,0.00016438,2]
[363922660,1748927446135,-430.0,0.00016438,2]
[363922661,1748927446145,-440.0,0.00016438,2]
[363922662,1748927446155,-481.69,0.00016438,2]
[363922663,1748927446164,-430.0,0.00016438,2]
[363922664,1748927446174,-430.0,0.00016438,2]
[363922665,1748927446183,-185.49225036,0.00016438,2]
[363922666,1748927446193,-440.0,0.00016438,2]
[363922667,1748927446202,-430.0,0.00016438,2]
[363922668,1748927446213,-430.0,0.00016438,2]
[363922669,1748927446223,-452.29,0.00016438,2]
[363922670,1748927446233,-430.0,0.00016438,2]
[363922671,1748927446243,-430.54144268,0.00016438,2]
[363922672,1748927446253,-430.0,0.00016438,2]
[363922673,1748927446262,-163.5218092,0.00016438,2]
[363922674,1748927446272,-430.0,0.00016438,2]
[363922675,1748927446285,-430.0,0.00016438,2]
[363922676,1748927446295,-430.0,0.00016438,2]
[363922677,1748927446304,-430.0,0.00016438,2]
[363922678,1748927446314,-564.92835148,0.00016438,2]
[363922679,1748927446324,-432.81345013,0.00016438,2]
[363922680,1748927446334,-430.0,0.00016438,2]
[363922681,1748927446344,-330.82302092,0.00016438,2]
[363922682,1748927446354,-440.0,0.00016438,2]
[363922683,1748927446364,-430.0,0.00016438,2]
[363922684,1748927446373,-461.81979733,0.00016438,2]
[363922685,1748927446382,-440.0,0.00016438,2]
[363922686,1748927446398,-440.0,0.00016438,2]
[363922687,1748927446407,-430.0,0.00016438,2]
[363922688,1748927446417,-433.69843563,0.00016438,2]
[363922689,1748927446426,-430.0,0.00016438,2]
[363922690,1748927446436,-205.21767907,0.00016438,2]
[363922693,1748927625167,184.218655,0.00013699,2]
[363922694,1748927983261,-268.18105616,0.00015605,2]
[363922695,1748927986659,-208.36463291,0.00015605,2]
[363922696,1748927990023,-155.30352364,0.00015605,2]
[363922697,1748927991529,-211.91,0.00015605,2]
[363922698,1748927993699,-152.0,0.00015605,2]
[363922699,1748927995115,-160.28384499,0.00015605,2]
[363922701,1748928053214,-1218.79675828,0.000157,2]
[363922702,1748928053237,-300.0,0.00016435,2]
[363922703,1748928053263,-300.0,0.00016435,2]
[363922704,1748928053287,-300.0,0.00016435,2]
[363922705,1748928053312,-1200.0,0.00016435,2]
[363922706,1748928053335,-300.0,0.00016436,2]
[363922707,1748928053359,-500.0,0.00016437,2]
[363922708,1748928053383,-339.89186464,0.00016437,2]
[363922709,1748928053408,-500.0,0.00016437,2]
[363922710,1748928053432,-500.0,0.00016437,2]
[363922711,1748928053456,-500.0,0.00016437,2]
[363922712,1748928053480,-500.0,0.00016437,2]
[363922713,1748928053506,-500.0,0.00016437,2]
[363922714,1748928053530,-500.0,0.00016437,2]
[363922715,1748928053557,-500.0,0.00016437,2]
[363922716,1748928053582,-500.0,0.00016437,2]
[363922717,1748928053611,-500.0,0.00016437,2]
[363922718,1748928053634,-600.0,0.00016437,2]
[363922719,1748928053657,-500.0,0.00016437,2]
[363922720,1748928053679,-500.0,0.00016437,2]
[363922721,1748928053703,-441.31137708,0.00016437,2]
[363922722,1748928072177,157.31718364,0.00013699,2]
[363922776,1748928631982,-541.88572858,0.000163,2]
[363922777,1748928631992,-279.0,0.00016435,2]
[363922779,1748928632002,-300.0,0.00016435,2]
[363922781,1748928632011,-300.0,0.00016435,2]
[363922783,1748928632021,-1200.0,0.00016435,2]
[363922785,1748928632030,-300.0,0.00016436,2]
[363922787,1748928632041,-58.68862292,0.00016437,2]
[363922789,1748928632051,-500.0,0.00016437,2]
[363922791,1748928632060,-617.91668971,0.00016437,2]
[363922793,1748928632070,-200.208196,0.00016437,2]
[363922795,1748928632081,-500.0,0.00016437,2]
[363922797,1748928632092,-161.62951458,0.00016437,2]
[363922799,1748928632101,-500.0,0.00016438,2]
[363922801,1748928632111,-500.0,0.00016438,2]
[363922802,1748928632120,-380.22469764,0.00016438,2]
[363922805,1748928632130,-440.0,0.00016438,2]
[363922806,1748928632140,-440.0,0.00016438,2]
[363922809,1748928632150,-440.0,0.00016438,2]
[363922811,1748928632161,-315.44620358,0.00016438,2]
[363922812,1748928632171,-52.35371173,0.00016438,2]
[363922814,1748928632183,-385.83333708,0.00016438,2]
[363922819,1748928632211,-1.81295119,0.00016438,2]
[363922821,1748928632221,-440.0,0.00016438,2]
[363922823,1748928632231,-430.0,0.00016438,2]
[363922824,1748928632240,-440.0,0.00016438,2]
[363922826,1748928632249,-573.47976568,0.00016438,2]
[363922828,1748928632259,-430.0,0.00016438,2]
[363922829,1748928632269,-12.84198225,0.00016438,2]
[363922883,1748928638127,-427.15801775,0.00016438,2]
[363922884,1748928638137,-430.0,0.00016438,2]
[363922885,1748928638146,-430.0,0.00016438,2]
[363922886,1748928638158,-430.0,0.00016438,2]
[363922887,1748928638168,-430.0,0.00016438,2]
[363922888,1748928638178,-430.0,0.00016438,2]
[363922889,1748928638188,-430.0,0.00016438,2]
[363922890,1748928638198,-430.0,0.00016438,2]
[363922891,1748928638208,-420.0,0.00016438,2]
[363922892,1748928638218,-430.0,0.00016438,2]
[363922893,1748928638228,-440.0,0.00016438,2]
[363922894,1748928638238,-430.0,0.00016438,2]
[363922895,1748928638248,-440.0,0.00016438,2]
[363922896,1748928638257,-430.0,0.00016438,2]
[363922897,1748928638267,-533.75333659,0.00016438,2]
[363922898,1748928638277,-508.43621285,0.00016438,2]
[363922899,1748928638286,-430.0,0.00016438,2]
[363922900,1748928638296,-440.0,0.00016438,2]
[363922901,1748928638307,-440.0,0.00016438,2]
[363922902,1748928638317,-224.78232093,0.00016438,2]
[363922904,1748928638326,-430.0,0.00016438,2]
[363922906,1748928638337,-430.0,0.00016438,2]
[363922908,1748928638348,-440.0,0.00016438,2]
[363922909,1748928638358,-500.0,0.00016438,2]
[363922910,1748928638368,-440.0,0.00016438,2]
[363922911,1748928638378,-430.0,0.00016438,2]
[363922912,1748928638388,-430.0,0.00016438,2]
[363922913,1748928638398,-430.0,0.00016438,2]
[363922914,1748928638407,-350.07224278,0.00016438,2]
[363922915,1748928638417,-440.0,0.00016438,2]
[363922916,1748928638427,-440.0,0.00016438,2]
[363922917,1748928638436,-461.01516362,0.00016438,2]
[363922918,1748928638447,-440.0,0.00016438,2]
[363922919,1748928638456,-440.0,0.00016438,2]
[363922920,1748928638466,-440.0,0.00016438,2]
[363922921,1748928638476,-441.09908079,0.00016438,2]
[363922922,1748928638486,-440.0,0.00016438,2]
[363922923,1748928638496,-430.0,0.00016438,2]
[363922924,1748928638506,-453.00019899,0.00016438,2]
[363922925,1748928638516,-440.0,0.00016438,2]
[363922926,1748928638526,-430.0,0.00016438,2]
[363922927,1748928638536,-440.0,0.00016438,2]
[363922928,1748928638546,-440.0,0.00016438,2]
[363922929,1748928638555,-440.0,0.00016438,2]
[363922930,1748928638565,-440.0,0.00016438,2]
[363922931,1748928638575,-430.0,0.00016438,2]
[363922932,1748928638588,-440.0,0.00016438,2]
[363922933,1748928638597,-440.0,0.00016438,2]
[363922934,1748928638608,-440.0,0.00016438,2]
[363922935,1748928638618,-500.0,0.00016438,2]
[363922936,1748928638627,-408.73730541,0.00016438,2]
[363922937,1748928638637,-206.43159862,0.00016438,2]
[363922938,1748928638647,-430.0,0.00016438,2]
[363922939,1748928638657,-430.0,0.00016438,2]
[363922940,1748928638667,-430.0,0.00016438,2]
[363922941,1748928638676,-310.47288694,0.00016438,2]
[363922942,1748928638686,-430.0,0.00016438,2]
[363922943,1748928638696,-430.0,0.00016438,2]
[363922944,1748928638706,-440.0,0.00016438,2]
[363922945,1748928638716,-440.0,0.00016438,2]